[Event "Titled Tuesday Blitz May 17 Late 2022"]
[White "Mortazavi, Ali"]
[Black "Gabrielian, Artur"]
[WhiteFideId "401323"]
[BlackFideId "4131002"]
[WhiteElo "2339"]
[BlackElo "2440"]
[Result "0-1"]
[Round "07"]
[TimeControl "180+1"]
[Date "2022.05.17"]
[WhiteClock "0:00:10"]
[BlackClock "0:00:24"]

1. Nf3 {[%clk 0:02:59]}  Nf6 {[%clk 0:02:59]} 2. g3 {[%clk 0:03:00]}  g6 {[%clk 0:03:00]} 3. Bg2 {[%clk 0:03:01]}  Bg7 {[%clk 0:03:01]} 4. O-O {[%clk 0:03:02]}  O-O {[%clk 0:03:01]} 5. d3 {[%clk 0:03:02]}  d6 {[%clk 0:03:01]} 6. e4 {[%clk 0:03:02]}  c5 {[%clk 0:03:01]} 7. e5 {[%clk 0:03:03]}  dxe5 {[%clk 0:03:01]} 8. Nxe5 {[%clk 0:03:04]}  Nfd7 {[%clk 0:03:01]} 9. Nc4 {[%clk 0:03:04]}  Nb6 {[%clk 0:03:01]} 10. Nc3 {[%clk 0:03:04]}  Nc6 {[%clk 0:02:57]} 11. Bxc6 {[%clk 0:03:05]}  bxc6 {[%clk 0:02:58]} 12. Re1 {[%clk 0:03:04]}  Be6 {[%clk 0:02:19]} 13. Ne5 {[%clk 0:02:23]}  Rc8 {[%clk 0:02:14]} 14. Bd2 {[%clk 0:02:23]}  c4 {[%clk 0:02:13]} 15. dxc4 {[%clk 0:02:04]}  Bxe5 {[%clk 0:02:06]} 16. Rxe5 {[%clk 0:02:04]}  Nxc4 {[%clk 0:02:07]} 17. Rxe6 {[%clk 0:01:45]}  fxe6 {[%clk 0:02:06]} 18. Bh6 {[%clk 0:01:45]}  Qxd1+ {[%clk 0:02:00]} 19. Rxd1 {[%clk 0:01:44]}  Rfd8 {[%clk 0:02:00]} 20. Re1 {[%clk 0:01:39]}  Nxb2 {[%clk 0:01:54]} 21. Kg2 {[%clk 0:01:37]}  Nc4 {[%clk 0:01:44]} 22. Ne4 {[%clk 0:01:37]}  Ne5 {[%clk 0:01:39]} 23. Nc5 {[%clk 0:01:27]}  Nf7 {[%clk 0:01:37]} 24. Be3 {[%clk 0:01:25]}  e5 {[%clk 0:01:35]} 25. h4 {[%clk 0:01:20]}  h5 {[%clk 0:01:34]} 26. Ne4 {[%clk 0:01:13]}  Rd5 {[%clk 0:01:25]} 27. Rb1 {[%clk 0:01:06]}  Rb5 {[%clk 0:01:22]} 28. Re1 {[%clk 0:00:56]}  Nd6 {[%clk 0:01:19]} 29. Ng5 {[%clk 0:00:54]}  Nf5 {[%clk 0:01:15]} 30. Bxa7 {[%clk 0:00:52]}  Ra8 {[%clk 0:01:07]} 31. Be3 {[%clk 0:00:49]}  Rxa2 {[%clk 0:01:04]} 32. c4 {[%clk 0:00:39]}  Rbb2 {[%clk 0:00:57]} 33. Ne4 {[%clk 0:00:39]}  Rc2 {[%clk 0:00:54]} 34. Bg5 {[%clk 0:00:26]}  Rxc4 {[%clk 0:00:49]} 35. Kh3 {[%clk 0:00:21]}  Nd4 {[%clk 0:00:31]} 36. Rb1 {[%clk 0:00:16]}  Nf3 {[%clk 0:00:30]} 37. Rb8+ {[%clk 0:00:12]}  Kf7 {[%clk 0:00:30]} 38. Rb7 {[%clk 0:00:12]}  Rxe4 {[%clk 0:00:28]} 39. Rxe7+ {[%clk 0:00:12]}  Kf8 {[%clk 0:00:28]} 40. Re6 {[%clk 0:00:11]}  Nxg5+ {[%clk 0:00:28]} 41. hxg5 {[%clk 0:00:12]}  Kf7 {[%clk 0:00:26]} 42. Rf6+ {[%clk 0:00:12]}  Kg7 {[%clk 0:00:26]} 43. f3 {[%clk 0:00:10]}  Ree2 {[%clk 0:00:24]} 0-1


[Site "https://www.chess.com"]

[Event "Titled Tuesday Blitz May 17 Late 2022"]
[White "Nazari, Arad"]
[Black "Karttunen, Mika"]
[WhiteFideId "12577324"]
[BlackFideId "502081"]
[WhiteElo "2129"]
[BlackElo "2343"]
[Result "1-0"]
[Round "07"]
[TimeControl "180+1"]
[Date "2022.05.17"]
[WhiteClock "0:00:50"]
[BlackClock "0:00:04"]

1. e4 {[%clk 0:03:00]}  e5 {[%clk 0:02:57]} 2. Nf3 {[%clk 0:03:01]}  Nc6 {[%clk 0:02:57]} 3. Bb5 {[%clk 0:03:01]}  a6 {[%clk 0:02:57]} 4. Bxc6 {[%clk 0:02:53]}  dxc6 {[%clk 0:02:57]} 5. O-O {[%clk 0:02:45]}  f6 {[%clk 0:02:55]} 6. d4 {[%clk 0:02:44]}  exd4 {[%clk 0:02:53]} 7. Qxd4 {[%clk 0:02:45]}  Qxd4 {[%clk 0:02:46]} 8. Nxd4 {[%clk 0:02:46]}  c5 {[%clk 0:02:31]} 9. Ne2 {[%clk 0:02:45]}  Be6 {[%clk 0:02:25]} 10. Nbc3 {[%clk 0:02:45]}  Ne7 {[%clk 0:02:16]} 11. Be3 {[%clk 0:02:40]}  b6 {[%clk 0:02:14]} 12. Rad1 {[%clk 0:02:41]}  Ng6 {[%clk 0:02:04]} 13. Nf4 {[%clk 0:02:38]}  Bc4 {[%clk 0:01:55]} 14. Nfd5 {[%clk 0:02:20]}  O-O-O {[%clk 0:01:53]} 15. Rfe1 {[%clk 0:02:17]}  a5 {[%clk 0:01:39]} 16. b3 {[%clk 0:02:16]}  Ba6 {[%clk 0:01:39]} 17. a4 {[%clk 0:02:15]}  Bd6 {[%clk 0:01:34]} 18. f3 {[%clk 0:02:04]}  Rhe8 {[%clk 0:01:21]} 19. Rd2 {[%clk 0:02:04]}  Kb7 {[%clk 0:00:59]} 20. Red1 {[%clk 0:02:02]}  c4 {[%clk 0:00:52]} 21. Nxb6 {[%clk 0:01:56]}  cxb3 {[%clk 0:00:47]} 22. cxb3 {[%clk 0:01:54]}  f5 {[%clk 0:00:42]} 23. Nc4 {[%clk 0:01:51]}  Bxc4 {[%clk 0:00:38]} 24. bxc4 {[%clk 0:01:52]}  Ra8 {[%clk 0:00:31]} 25. c5 {[%clk 0:01:45]}  Be5 {[%clk 0:00:27]} 26. Bd4 {[%clk 0:01:42]}  Kc6 {[%clk 0:00:24]} 27. exf5 {[%clk 0:01:39]}  Bxd4+ {[%clk 0:00:24]} 28. Rxd4 {[%clk 0:01:40]}  Ne5 {[%clk 0:00:20]} 29. Ne4 {[%clk 0:01:38]}  Rab8 {[%clk 0:00:19]} 30. f6 {[%clk 0:01:35]}  gxf6 {[%clk 0:00:16]} 31. Nxf6 {[%clk 0:01:35]}  Re7 {[%clk 0:00:16]} 32. Re4 {[%clk 0:01:31]}  Ng6 {[%clk 0:00:11]} 33. Rxe7 {[%clk 0:01:26]}  Nxe7 {[%clk 0:00:10]} 34. Re1 {[%clk 0:01:26]}  Ng6 {[%clk 0:00:08]} 35. Re6+ {[%clk 0:01:16]}  Kxc5 {[%clk 0:00:08]} 36. Nd7+ {[%clk 0:01:15]}  Kd5 {[%clk 0:00:09]} 37. Ra6 {[%clk 0:01:10]}  Rb1+ {[%clk 0:00:08]} 38. Kf2 {[%clk 0:01:10]}  Nf4 {[%clk 0:00:07]} 39. Rxa5+ {[%clk 0:01:09]}  Kd6 {[%clk 0:00:08]} 40. Nf6 {[%clk 0:01:05]}  Rb2+ {[%clk 0:00:08]} 41. Kg3 {[%clk 0:01:05]}  Nxg2 {[%clk 0:00:09]} 42. Ne4+ {[%clk 0:01:05]}  Kc6 {[%clk 0:00:09]} 43. Rc5+ {[%clk 0:01:05]}  Kd7 {[%clk 0:00:09]} 44. Rd5+ {[%clk 0:01:02]}  Kc6 {[%clk 0:00:09]} 45. Rd2 {[%clk 0:01:02]}  Rxd2 {[%clk 0:00:08]} 46. Nxd2 {[%clk 0:01:03]}  Ne3 {[%clk 0:00:08]} 47. f4 {[%clk 0:01:03]}  Kd5 {[%clk 0:00:07]} 48. Kf3 {[%clk 0:01:02]}  Nf5 {[%clk 0:00:07]} 49. a5 {[%clk 0:01:01]}  Nd4+ {[%clk 0:00:07]} 50. Kg4 {[%clk 0:01:00]}  c5 {[%clk 0:00:07]} 51. f5 {[%clk 0:00:57]}  Nc6 {[%clk 0:00:06]} 52. a6 {[%clk 0:00:57]}  c4 {[%clk 0:00:05]} 53. Nxc4 {[%clk 0:00:54]}  Kxc4 {[%clk 0:00:05]} 54. f6 {[%clk 0:00:55]}  Kb5 {[%clk 0:00:01]} 55. f7 {[%clk 0:00:50]}  Ne5+ {[%clk 0:00:02]} 56. Kf4 {[%clk 0:00:51]}  Nxf7 {[%clk 0:00:03]} 57. a7 {[%clk 0:00:51]}  Nd6 {[%clk 0:00:03]} 58. a8=Q {[%clk 0:00:50]}  Nc4 {[%clk 0:00:04]} 1-0


[Site "https://www.chess.com"]

[Event "Titled Tuesday Blitz May 17 Late 2022"]
[White "Risteski, Emil"]
[Black "Ostrovskiy, Aleksandr"]
[WhiteFideId "15005267"]
[BlackFideId "2034239"]
[WhiteElo "2070"]
[BlackElo "2340"]
[Result "0-1"]
[Round "07"]
[TimeControl "180+1"]
[Date "2022.05.17"]
[WhiteClock "0:00:12"]
[BlackClock "0:00:09"]

1. e4 {[%clk 0:03:00]}  d5 {[%clk 0:02:59]} 2. exd5 {[%clk 0:03:00]}  Nf6 {[%clk 0:02:59]} 3. d4 {[%clk 0:03:00]}  Bg4 {[%clk 0:03:00]} 4. f3 {[%clk 0:02:58]}  Bf5 {[%clk 0:03:00]} 5. c4 {[%clk 0:02:55]}  e6 {[%clk 0:03:00]} 6. Nc3 {[%clk 0:02:55]}  exd5 {[%clk 0:02:57]} 7. g4 {[%clk 0:02:54]}  Bg6 {[%clk 0:02:58]} 8. g5 {[%clk 0:02:53]}  Nh5 {[%clk 0:02:50]} 9. cxd5 {[%clk 0:02:53]}  Bd6 {[%clk 0:02:45]} 10. Bd3 {[%clk 0:02:47]}  O-O {[%clk 0:02:39]} 11. Nge2 {[%clk 0:02:46]}  c5 {[%clk 0:02:34]} 12. Be3 {[%clk 0:02:35]}  Re8 {[%clk 0:02:32]} 13. Qd2 {[%clk 0:02:33]}  cxd4 {[%clk 0:02:29]} 14. Bxd4 {[%clk 0:02:28]}  Bxd3 {[%clk 0:02:13]} 15. Qxd3 {[%clk 0:02:27]}  Qxg5 {[%clk 0:02:01]} 16. Rg1 {[%clk 0:02:21]}  Qh4+ {[%clk 0:02:00]} 17. Kd2 {[%clk 0:02:17]}  Nd7 {[%clk 0:01:54]} 18. Rg4 {[%clk 0:02:09]}  Qxh2 {[%clk 0:01:33]} 19. Rag1 {[%clk 0:02:08]}  Ne5 {[%clk 0:01:21]} 20. Bxe5 {[%clk 0:01:37]}  Bxe5 {[%clk 0:01:20]} 21. R1g2 {[%clk 0:01:31]}  Qh1 {[%clk 0:00:53]} 22. Rg1 {[%clk 0:01:30]}  Qh2 {[%clk 0:00:51]} 23. R1g2 {[%clk 0:01:22]}  Qh1 {[%clk 0:00:46]} 24. Rg1 {[%clk 0:01:20]}  Qh3 {[%clk 0:00:33]} 25. Ne4 {[%clk 0:01:17]}  g6 {[%clk 0:00:22]} 26. Nf2 {[%clk 0:01:10]}  Qh2 {[%clk 0:00:17]} 27. R1g2 {[%clk 0:01:04]}  Nf4 {[%clk 0:00:16]} 28. Nxf4 {[%clk 0:00:49]}  Bxf4+ {[%clk 0:00:17]} 29. Kc2 {[%clk 0:00:38]}  Rac8+ {[%clk 0:00:16]} 30. Kb3 {[%clk 0:00:34]}  Qh6 {[%clk 0:00:17]} 31. Ne4 {[%clk 0:00:30]}  Be5 {[%clk 0:00:15]} 32. f4 {[%clk 0:00:26]}  Bg7 {[%clk 0:00:12]} 33. f5 {[%clk 0:00:24]}  Red8 {[%clk 0:00:10]} 34. a3 {[%clk 0:00:18]}  Qc1 {[%clk 0:00:09]} 35. Ka2 {[%clk 0:00:18]}  Qc4+ {[%clk 0:00:08]} 36. Qxc4 {[%clk 0:00:18]}  Rxc4 {[%clk 0:00:09]} 37. Nf6+ {[%clk 0:00:18]}  Bxf6 {[%clk 0:00:10]} 38. Rxc4 {[%clk 0:00:18]}  Rxd5 {[%clk 0:00:10]} 39. fxg6 {[%clk 0:00:17]}  hxg6 {[%clk 0:00:11]} 40. Rc7 {[%clk 0:00:17]}  Rb5 {[%clk 0:00:10]} 41. Rf2 {[%clk 0:00:14]}  Kg7 {[%clk 0:00:10]} 42. a4 {[%clk 0:00:13]}  Rb4 {[%clk 0:00:09]} 43. Ka3 {[%clk 0:00:13]}  a5 {[%clk 0:00:10]} 44. b3 {[%clk 0:00:12]}  b6 {[%clk 0:00:06]} 45. Rd2 {[%clk 0:00:11]}  Rf4 {[%clk 0:00:04]} 46. Rc6 {[%clk 0:00:07]}  Bd4 {[%clk 0:00:04]} 47. Re2 {[%clk 0:00:04]}  Bc5+ {[%clk 0:00:04]} 48. Kb2 {[%clk 0:00:04]}  g5 {[%clk 0:00:04]} 49. Rc7 {[%clk 0:00:03]}  g4 {[%clk 0:00:04]} 50. Rd7 {[%clk 0:00:03]}  Kg6 {[%clk 0:00:03]} 51. Rd5 {[%clk 0:00:03]}  f5 {[%clk 0:00:04]} 52. Kc2 {[%clk 0:00:04]}  Kg5 {[%clk 0:00:03]} 53. Kd3 {[%clk 0:00:05]}  Rf3+ {[%clk 0:00:03]} 54. Kc4 {[%clk 0:00:05]}  g3 {[%clk 0:00:04]} 55. Rd8 {[%clk 0:00:05]}  Rf4+ {[%clk 0:00:03]} 56. Kb5 {[%clk 0:00:04]}  Kg4 {[%clk 0:00:04]} 57. Rh8 {[%clk 0:00:04]}  Kf3 {[%clk 0:00:04]} 58. Rc2 {[%clk 0:00:04]}  g2 {[%clk 0:00:04]} 59. Rg8 {[%clk 0:00:05]}  g1=Q {[%clk 0:00:02]} 60. Rxg1 {[%clk 0:00:04]}  Bxg1 {[%clk 0:00:03]} 61. Rc6 {[%clk 0:00:03]}  Bc5 {[%clk 0:00:03]} 62. Ka6 {[%clk 0:00:04]}  Rb4 {[%clk 0:00:03]} 63. Rf6 {[%clk 0:00:04]}  f4 {[%clk 0:00:03]} 64. Kb7 {[%clk 0:00:03]}  Rxb3 {[%clk 0:00:03]} 65. Kc6 {[%clk 0:00:04]}  Rb4 {[%clk 0:00:04]} 66. Kd5 {[%clk 0:00:04]}  Ke3 {[%clk 0:00:05]} 67. Kc6 {[%clk 0:00:05]}  Rd4 {[%clk 0:00:05]} 68. Re6+ {[%clk 0:00:06]}  Kf3 {[%clk 0:00:05]} 69. Rf6 {[%clk 0:00:06]}  Rd6+ {[%clk 0:00:05]} 70. Kb5 {[%clk 0:00:04]}  Rxf6 {[%clk 0:00:05]} 71. Ka6 {[%clk 0:00:05]}  Rd6 {[%clk 0:00:05]} 72. Kb5 {[%clk 0:00:05]}  Ke4 {[%clk 0:00:06]} 73. Ka6 {[%clk 0:00:06]}  f3 {[%clk 0:00:07]} 74. Kb5 {[%clk 0:00:07]}  f2 {[%clk 0:00:07]} 75. Ka6 {[%clk 0:00:08]}  f1=Q+ {[%clk 0:00:08]} 76. Ka7 {[%clk 0:00:09]}  Qf7+ {[%clk 0:00:08]} 77. Ka6 {[%clk 0:00:09]}  Qc4+ {[%clk 0:00:08]} 78. Ka7 {[%clk 0:00:09]}  Qxa4 {[%clk 0:00:07]} 79. Ka8 {[%clk 0:00:10]}  Qc6+ {[%clk 0:00:07]} 80. Ka7 {[%clk 0:00:11]}  Rd7+ {[%clk 0:00:07]} 81. Ka6 {[%clk 0:00:12]}  b5+ {[%clk 0:00:08]} 82. Kxa5 {[%clk 0:00:12]}  Ra7# {[%clk 0:00:09]} 0-1


[Site "https://www.chess.com"]

[Event "Titled Tuesday Blitz May 17 Late 2022"]
[White "Sadhwani, Raunak"]
[Black "Shimanov, Aleksandr"]
[WhiteFideId "35093487"]
[BlackFideId "4198603"]
[WhiteElo "2616"]
[BlackElo "2605"]
[Result "1-0"]
[Round "07"]
[TimeControl "180+1"]
[Date "2022.05.17"]
[WhiteClock "0:00:24"]
[BlackClock "0:00:01"]

1. e4 {[%clk 0:03:00]}  d5 {[%clk 0:02:59]} 2. exd5 {[%clk 0:03:00]}  Qxd5 {[%clk 0:03:00]} 3. Nc3 {[%clk 0:03:00]}  Qe5+ {[%clk 0:03:00]} 4. Be2 {[%clk 0:02:58]}  Bg4 {[%clk 0:02:59]} 5. d4 {[%clk 0:02:58]}  Bxe2 {[%clk 0:02:59]} 6. Ngxe2 {[%clk 0:02:59]}  Qa5 {[%clk 0:03:00]} 7. O-O {[%clk 0:02:58]}  Nf6 {[%clk 0:02:59]} 8. b4 {[%clk 0:02:54]}  Qh5 {[%clk 0:02:55]} 9. Nf4 {[%clk 0:02:51]}  Qxd1 {[%clk 0:02:54]} 10. Rxd1 {[%clk 0:02:51]}  e6 {[%clk 0:02:54]} 11. Rb1 {[%clk 0:02:50]}  Nc6 {[%clk 0:02:49]} 12. b5 {[%clk 0:02:49]}  Na5 {[%clk 0:02:49]} 13. Nd3 {[%clk 0:02:47]}  Nc4 {[%clk 0:02:44]} 14. Bf4 {[%clk 0:02:43]}  O-O-O {[%clk 0:02:43]} 15. Ne5 {[%clk 0:02:42]}  Nxe5 {[%clk 0:02:40]} 16. Bxe5 {[%clk 0:02:38]}  Nd7 {[%clk 0:02:37]} 17. Bg3 {[%clk 0:02:34]}  Nb6 {[%clk 0:02:34]} 18. a4 {[%clk 0:02:34]}  Nc4 {[%clk 0:02:32]} 19. Ne4 {[%clk 0:02:29]}  Be7 {[%clk 0:02:30]} 20. Rb3 {[%clk 0:02:28]}  Nd6 {[%clk 0:01:57]} 21. Bxd6 {[%clk 0:02:19]}  cxd6 {[%clk 0:01:46]} 22. d5 {[%clk 0:02:18]}  e5 {[%clk 0:01:46]} 23. g4 {[%clk 0:02:17]}  Kb8 {[%clk 0:01:45]} 24. c4 {[%clk 0:02:17]}  g6 {[%clk 0:01:31]} 25. g5 {[%clk 0:02:16]}  h6 {[%clk 0:01:31]} 26. Rf3 {[%clk 0:02:05]}  Rdf8 {[%clk 0:01:30]} 27. c5 {[%clk 0:01:43]}  dxc5 {[%clk 0:01:30]} 28. d6 {[%clk 0:01:43]}  Bxg5 {[%clk 0:01:04]} 29. Nxc5 {[%clk 0:01:43]}  Ka8 {[%clk 0:00:26]} 30. Nd7 {[%clk 0:01:43]}  Re8 {[%clk 0:00:26]} 31. Rxf7 {[%clk 0:01:41]}  e4 {[%clk 0:00:26]} 32. Nf6 {[%clk 0:01:30]}  Bxf6 {[%clk 0:00:15]} 33. Rxf6 {[%clk 0:01:31]}  Kb8 {[%clk 0:00:15]} 34. a5 {[%clk 0:01:04]}  Re5 {[%clk 0:00:13]} 35. b6 {[%clk 0:00:53]}  Rd8 {[%clk 0:00:09]} 36. d7 {[%clk 0:00:50]}  Rg5+ {[%clk 0:00:03]} 37. Kf1 {[%clk 0:00:44]}  axb6 {[%clk 0:00:01]} 38. axb6 {[%clk 0:00:44]}  Rf5 {[%clk 0:00:01]} 39. Rxf5 {[%clk 0:00:31]}  gxf5 {[%clk 0:00:02]} 40. Ke2 {[%clk 0:00:29]}  f4 {[%clk 0:00:02]} 41. Rd4 {[%clk 0:00:29]}  e3 {[%clk 0:00:01]} 42. f3 {[%clk 0:00:24]}  h5 {[%clk 0:00:01]} 43. Rxf4 {[%clk 0:00:24]} 1-0


[Site "https://www.chess.com"]

[Event "Titled Tuesday Blitz May 17 Late 2022"]
[White "Sjugirov, Sanan"]
[Black "Makarian, Rudik"]
[WhiteFideId "4189302"]
[BlackFideId "44105681"]
[WhiteElo "2602"]
[BlackElo "2419"]
[Result "1-0"]
[Round "07"]
[TimeControl "180+1"]
[Date "2022.05.17"]
[WhiteClock "0:00:17"]
[BlackClock "0:00:04"]

1. e4 {[%clk 0:03:00]}  d6 {[%clk 0:02:56]} 2. d4 {[%clk 0:03:00]}  Nf6 {[%clk 0:02:57]} 3. Nc3 {[%clk 0:03:00]}  e5 {[%clk 0:02:57]} 4. Nf3 {[%clk 0:02:58]}  Nbd7 {[%clk 0:02:57]} 5. Bc4 {[%clk 0:02:57]}  Be7 {[%clk 0:02:57]} 6. O-O {[%clk 0:02:57]}  O-O {[%clk 0:02:58]} 7. a4 {[%clk 0:02:53]}  c6 {[%clk 0:02:58]} 8. h3 {[%clk 0:02:45]}  Re8 {[%clk 0:02:57]} 9. Ba2 {[%clk 0:02:44]}  h6 {[%clk 0:02:54]} 10. Be3 {[%clk 0:02:38]}  Qc7 {[%clk 0:02:53]} 11. dxe5 {[%clk 0:02:33]}  dxe5 {[%clk 0:02:48]} 12. Nh4 {[%clk 0:02:32]}  Nf8 {[%clk 0:02:33]} 13. Nf5 {[%clk 0:02:23]}  Bxf5 {[%clk 0:02:33]} 14. exf5 {[%clk 0:02:24]}  Bb4 {[%clk 0:02:22]} 15. Qe2 {[%clk 0:02:05]}  Bxc3 {[%clk 0:02:09]} 16. bxc3 {[%clk 0:02:06]}  Nd5 {[%clk 0:02:10]} 17. Bd2 {[%clk 0:02:02]}  Rad8 {[%clk 0:02:04]} 18. Rad1 {[%clk 0:01:50]}  Nh7 {[%clk 0:02:03]} 19. Rfe1 {[%clk 0:01:39]}  a5 {[%clk 0:01:47]} 20. c4 {[%clk 0:01:33]}  Nb4 {[%clk 0:01:39]} 21. Bb3 {[%clk 0:01:27]}  Nf6 {[%clk 0:01:35]} 22. Bxb4 {[%clk 0:01:21]}  axb4 {[%clk 0:01:35]} 23. c5 {[%clk 0:01:22]}  e4 {[%clk 0:01:30]} 24. Rxd8 {[%clk 0:01:12]}  Rxd8 {[%clk 0:00:46]} 25. Qc4 {[%clk 0:01:13]}  Rd5 {[%clk 0:00:42]} 26. Qxb4 {[%clk 0:01:03]}  Rxf5 {[%clk 0:00:43]} 27. Qd4 {[%clk 0:01:04]}  Qe7 {[%clk 0:00:33]} 28. Qd6 {[%clk 0:00:58]}  Qxd6 {[%clk 0:00:26]} 29. cxd6 {[%clk 0:00:59]}  Kf8 {[%clk 0:00:26]} 30. Rd1 {[%clk 0:00:45]}  Nd7 {[%clk 0:00:26]} 31. Rd4 {[%clk 0:00:42]}  Re5 {[%clk 0:00:26]} 32. Rb4 {[%clk 0:00:41]}  b6 {[%clk 0:00:26]} 33. Rc4 {[%clk 0:00:29]}  c5 {[%clk 0:00:20]} 34. a5 {[%clk 0:00:30]}  b5 {[%clk 0:00:11]} 35. Rc3 {[%clk 0:00:29]}  c4 {[%clk 0:00:11]} 36. a6 {[%clk 0:00:25]}  Rd5 {[%clk 0:00:09]} 37. Ba2 {[%clk 0:00:17]}  Rxd6 {[%clk 0:00:07]} 38. Ra3 {[%clk 0:00:18]}  Nb6 {[%clk 0:00:07]} 39. Ra5 {[%clk 0:00:17]}  Na8 {[%clk 0:00:05]} 40. Rxb5 {[%clk 0:00:16]}  Rxa6 {[%clk 0:00:04]} 41. Bxc4 {[%clk 0:00:17]} 1-0


[Site "https://www.chess.com"]

[Event "Titled Tuesday Blitz May 17 Late 2022"]
[White "Steinberg, Nitzan"]
[Black "Jobava, Baadur"]
[WhiteFideId "2801795"]
[BlackFideId "13601520"]
[WhiteElo "2471"]
[BlackElo "2617"]
[Result "1/2-1/2"]
[Round "07"]
[TimeControl "180+1"]
[Date "2022.05.17"]
[WhiteClock "0:00:04"]
[BlackClock "0:00:29"]

1. e4 {[%clk 0:03:00]}  c6 {[%clk 0:03:00]} 2. Nf3 {[%clk 0:03:01]}  d5 {[%clk 0:03:01]} 3. Nc3 {[%clk 0:03:01]}  Bg4 {[%clk 0:03:00]} 4. Be2 {[%clk 0:03:00]}  e6 {[%clk 0:03:00]} 5. d4 {[%clk 0:02:59]}  Nf6 {[%clk 0:02:59]} 6. h3 {[%clk 0:03:00]}  Bh5 {[%clk 0:02:55]} 7. e5 {[%clk 0:03:00]}  Nfd7 {[%clk 0:02:55]} 8. g4 {[%clk 0:03:00]}  Bg6 {[%clk 0:02:54]} 9. h4 {[%clk 0:03:01]}  h5 {[%clk 0:02:48]} 10. gxh5 {[%clk 0:03:02]}  Bf5 {[%clk 0:02:46]} 11. Ng5 {[%clk 0:02:57]}  c5 {[%clk 0:02:43]} 12. Bg4 {[%clk 0:02:42]}  Bxg4 {[%clk 0:02:32]} 13. Qxg4 {[%clk 0:02:42]}  cxd4 {[%clk 0:02:30]} 14. Nxe6 {[%clk 0:02:41]}  Nxe5 {[%clk 0:02:22]} 15. Nxg7+ {[%clk 0:02:27]}  Bxg7 {[%clk 0:02:23]} 16. Qxg7 {[%clk 0:02:27]}  Rxh5 {[%clk 0:02:21]} 17. Qg8+ {[%clk 0:01:57]}  Kd7 {[%clk 0:02:20]} 18. Qxd8+ {[%clk 0:01:57]}  Kxd8 {[%clk 0:02:21]} 19. Nxd5 {[%clk 0:01:50]}  Nf3+ {[%clk 0:02:08]} 20. Ke2 {[%clk 0:01:51]}  Rxd5 {[%clk 0:02:09]} 21. Kxf3 {[%clk 0:01:51]}  Nc6 {[%clk 0:02:10]} 22. Rg1 {[%clk 0:01:39]}  Kd7 {[%clk 0:02:07]} 23. Bf4 {[%clk 0:01:36]}  Rh8 {[%clk 0:02:05]} 24. Rg7 {[%clk 0:01:34]}  Ke6 {[%clk 0:01:47]} 25. Re1+ {[%clk 0:01:26]}  Kf6 {[%clk 0:01:46]} 26. Rg5 {[%clk 0:01:25]}  Rxg5 {[%clk 0:01:39]} 27. Bxg5+ {[%clk 0:01:23]}  Kf5 {[%clk 0:01:40]} 28. Kg3 {[%clk 0:01:02]}  f6 {[%clk 0:01:38]} 29. Bd2 {[%clk 0:01:00]}  Ne5 {[%clk 0:01:37]} 30. f3 {[%clk 0:00:55]}  d3 {[%clk 0:01:34]} 31. cxd3 {[%clk 0:00:48]}  Rg8+ {[%clk 0:01:33]} 32. Kh3 {[%clk 0:00:44]}  Rd8 {[%clk 0:01:04]} 33. Bc3 {[%clk 0:00:38]}  Nxd3 {[%clk 0:01:02]} 34. Re7 {[%clk 0:00:32]}  Nf4+ {[%clk 0:00:59]} 35. Kg3 {[%clk 0:00:31]}  Rg8+ {[%clk 0:00:59]} 36. Kf2 {[%clk 0:00:30]}  Rg2+ {[%clk 0:00:48]} 37. Kf1 {[%clk 0:00:30]}  Rg3 {[%clk 0:00:48]} 38. Kf2 {[%clk 0:00:27]}  Rg2+ {[%clk 0:00:47]} 39. Kf1 {[%clk 0:00:27]}  Rg3 {[%clk 0:00:47]} 40. Rxb7 {[%clk 0:00:24]}  Rxf3+ {[%clk 0:00:47]} 41. Ke1 {[%clk 0:00:25]}  Ke4 {[%clk 0:00:44]} 42. Kd2 {[%clk 0:00:19]}  Rf2+ {[%clk 0:00:43]} 43. Kd1 {[%clk 0:00:19]}  Nd5 {[%clk 0:00:42]} 44. Bd2 {[%clk 0:00:13]}  f5 {[%clk 0:00:40]} 45. h5 {[%clk 0:00:13]}  f4 {[%clk 0:00:40]} 46. h6 {[%clk 0:00:13]}  Rh2 {[%clk 0:00:39]} 47. h7 {[%clk 0:00:13]}  Kd3 {[%clk 0:00:39]} 48. Rb3+ {[%clk 0:00:13]}  Ke4 {[%clk 0:00:39]} 49. Rb7 {[%clk 0:00:13]}  f3 {[%clk 0:00:38]} 50. Rf7 {[%clk 0:00:06]}  Ne3+ {[%clk 0:00:33]} 51. Bxe3 {[%clk 0:00:02]}  Kxe3 {[%clk 0:00:34]} 52. Re7+ {[%clk 0:00:02]}  Kd3 {[%clk 0:00:33]} 53. Rd7+ {[%clk 0:00:02]}  Ke3 {[%clk 0:00:33]} 54. Re7+ {[%clk 0:00:03]}  Kd3 {[%clk 0:00:29]} 55. Rd7+ {[%clk 0:00:03]}  Ke3 {[%clk 0:00:29]} 56. Re7+ {[%clk 0:00:04]} 1/2-1/2


[Site "https://www.chess.com"]

[Event "Titled Tuesday Blitz May 17 Late 2022"]
[White "Wagner, Dennis"]
[Black "Lamaze, Simon"]
[WhiteFideId "24650684"]
[BlackFideId "36069264"]
[WhiteElo "2355"]
[BlackElo "1999"]
[Result "0-1"]
[Round "07"]
[TimeControl "180+1"]
[Date "2022.05.17"]
[WhiteClock "0:00:46"]
[BlackClock "0:01:51"]

1. e4 {[%clk 0:03:00]}  c5 {[%clk 0:02:58]} 2. Nf3 {[%clk 0:03:00]}  Nc6 {[%clk 0:02:58]} 3. c3 {[%clk 0:03:01]}  Nf6 {[%clk 0:02:56]} 4. e5 {[%clk 0:03:01]}  Nd5 {[%clk 0:02:57]} 5. Bc4 {[%clk 0:03:02]}  e6 {[%clk 0:02:57]} 6. O-O {[%clk 0:03:01]}  d6 {[%clk 0:02:55]} 7. d4 {[%clk 0:03:01]}  cxd4 {[%clk 0:02:55]} 8. cxd4 {[%clk 0:03:02]}  Be7 {[%clk 0:02:56]} 9. Qe2 {[%clk 0:02:59]}  O-O {[%clk 0:02:55]} 10. Rd1 {[%clk 0:02:59]}  Na5 {[%clk 0:02:55]} 11. Bd3 {[%clk 0:02:58]}  Nb4 {[%clk 0:02:55]} 12. Nc3 {[%clk 0:02:56]}  Nxd3 {[%clk 0:02:53]} 13. Rxd3 {[%clk 0:02:57]}  b6 {[%clk 0:02:41]} 14. b4 {[%clk 0:02:48]}  Nc4 {[%clk 0:02:38]} 15. d5 {[%clk 0:02:23]}  dxe5 {[%clk 0:02:14]} 16. dxe6 {[%clk 0:02:21]}  Qe8 {[%clk 0:02:14]} 17. Nd5 {[%clk 0:01:51]}  Bxe6 {[%clk 0:02:09]} 18. Nc7 {[%clk 0:01:51]}  Qc6 {[%clk 0:02:05]} 19. Nxa8 {[%clk 0:01:49]}  e4 {[%clk 0:02:05]} 20. Nd4 {[%clk 0:01:37]}  exd3 {[%clk 0:02:05]} 21. Nxc6 {[%clk 0:01:37]}  dxe2 {[%clk 0:02:04]} 22. Nxe7+ {[%clk 0:01:37]}  Kh8 {[%clk 0:02:04]} 23. Bf4 {[%clk 0:01:30]}  Rd8 {[%clk 0:01:59]} 24. Re1 {[%clk 0:01:06]}  Rd1 {[%clk 0:01:56]} 25. f3 {[%clk 0:01:03]}  Rxe1+ {[%clk 0:01:55]} 26. Kf2 {[%clk 0:01:04]}  Ra1 {[%clk 0:01:51]} 27. Kxe2 {[%clk 0:01:04]}  Rxa2+ {[%clk 0:01:52]} 28. Kf1 {[%clk 0:00:59]}  a5 {[%clk 0:01:51]} 29. bxa5 {[%clk 0:00:55]}  bxa5 {[%clk 0:01:52]} 30. Nc7 {[%clk 0:00:55]}  a4 {[%clk 0:01:52]} 31. Nxe6 {[%clk 0:00:52]}  fxe6 {[%clk 0:01:53]} 32. Nc6 {[%clk 0:00:51]}  a3 {[%clk 0:01:52]} 33. h4 {[%clk 0:00:46]}  Rb2 {[%clk 0:01:51]} 0-1


[Site "https://www.chess.com"]